bitfinex/quotes_SOLUSD_20260224
["timestamp","ask_amount","ask_price","bid_price","bid_amount"]
[1771918334504,13.40297435,77.284,77.273,0.2]
[1771918337718,5.16375594,77.3,77.273,0.2]
[1771918337891,0.4636855,77.299,77.264,0.47884193]
[1771918338091,0.4636855,77.299,77.265,0.47883066]
[1771918338519,0.4978304,77.289,77.263,0.2]
[1771918339417,0.4978304,77.289,77.264,0.47883066]
[1771918339745,0.4978304,77.287,77.265,0.47883066]
[1771918341517,12.93895401,77.286,77.265,0.47883066]
[1771918341715,0.4978304,77.285,77.265,0.47883066]
[1771918343113,0.47762106,77.29,77.265,0.47883066]
[1771918344314,0.47762106,77.288,77.265,0.47883066]
[1771918345820,0.47762106,77.286,77.265,0.47883066]
[1771918347002,0.47762106,77.302,77.271,0.50470299]
[1771918347208,0.47762106,77.299,77.271,0.50470299]
[1771918347703,12.93694532,77.298,77.271,0.50470299]
[1771918347896,0.47762106,77.297,77.271,0.50470299]
[1771918350617,12.93728006,77.296,77.273,0.50470299]
[1771918350919,0.47762106,77.295,77.273,0.50470299]
[1771918351905,0.47762106,77.313,77.273,0.50470299]
[1771918352101,0.47762106,77.309,77.281,0.50470299]
[1771918352427,0.47762106,77.299,77.281,0.50470299]
[1771918352628,0.47762106,77.299,77.281,13.44433858]
[1771918352805,0.47762106,77.299,77.282,0.50470299]
[1771918353124,0.47762106,77.305,77.282,0.50470299]
[1771918354610,0.47762106,77.299,77.271,0.50470299]
[1771918354916,0.47762106,77.289,77.263,0.2]
[1771918355929,0.47762106,77.279,77.249,12.94507916]
[1771918356225,5.15263614,77.26,77.226,32.37238434]
[1771918356530,5.15263614,77.26,77.22,5.15263614]
[1771918356531,0.47762106,77.259,77.232,0.50470299]
[1771918356741,0.47762106,77.259,77.233,0.50470299]
[1771918357624,13.42126443,77.258,77.233,0.50470299]
[1771918360326,12.94364337,77.258,77.233,0.50470299]
[1771918360626,12.942414,77.266,77.235,0.50470299]
[1771918360810,12.942414,77.266,77.241,0.50470299]
[1771918362027,0.47762106,77.259,77.241,0.50470299]
[1771918366222,0.47762106,77.259,77.236,0.50470299]
[1771918366417,0.47762106,77.259,77.23,0.50470299]
[1771918367422,5.6302572,77.25,77.23,0.50470299]
[1771918368138,0.46934976,77.249,77.23,0.50470299]
[1771918368434,0.46934976,77.249,77.213,0.4581279]
[1771918368435,0.46934976,77.239,77.213,0.4581279]
[1771918368631,0.46934976,77.238,77.213,0.4581279]
[1771918368818,0.46934976,77.248,77.213,0.4581279]
[1771918369026,5.36086188,77.292,77.201,45.3362003]
[1771918369027,0.46934976,77.259,77.221,0.4581279]
[1771918369719,12.94364337,77.258,77.223,0.4581279]
[1771918370236,13.41299313,77.258,77.223,0.4581279]
[1771918372936,0.46934976,77.257,77.225,0.4581279]
[1771918374822,13.41332822,77.256,77.227,0.4581279]
[1771918375848,0.2,77.248,77.227,0.4581279]
[1771918376640,0.2,77.238,77.229,0.4581279]
[1771918377838,0.2,77.248,77.229,0.4581279]
[1771918379720,0.2,77.248,77.23,12.94833613]
[1771918379943,0.2,77.248,77.231,0.4581279]
[1771918380525,0.46934976,77.239,77.212,0.4581279]
[1771918380752,0.46934976,77.229,77.208,0.4581279]
[1771918380933,0.46934976,77.229,77.168,62.03383402]
[1771918380934,5.15263614,77.22,77.202,0.4581279]
[1771918381128,5.15263614,77.22,77.191,12.95487815]
[1771918381331,5.15263614,77.21,77.191,12.95487815]
[1771918381528,5.15263614,77.21,77.19,0.2]
[1771918381732,5.15263614,77.21,77.19,13.15497038]
[1771918382653,0.46934976,77.199,77.171,12.95819336]
[1771918383232,0.46934976,77.189,77.166,0.4581279]
[1771918383632,0.46934976,77.179,77.15,0.2]
[1771918383949,5.15263614,77.2,77.171,0.4581279]
[1771918384853,0.46934976,77.204,77.171,0.4581279]
[1771918385152,0.46934976,77.189,77.154,0.4581279]
[1771918385352,0.46934976,77.189,77.16,5.15263614]
[1771918385541,5.15263614,77.21,77.181,0.4581279]
[1771918385949,0.46934976,77.199,77.171,0.4581279]
[1771918386137,0.46934976,77.199,77.174,0.4581279]
[1771918388251,0.46934976,77.197,77.174,0.4581279]
[1771918388636,0.46934976,77.197,77.168,13.41686556]
[1771918388952,0.46934976,77.189,77.164,12.95932074]
[1771918389152,0.46934976,77.189,77.164,13.41744864]
[1771918389450,0.46934976,77.189,77.165,0.4581279]
[1771918390651,0.46934976,77.189,77.167,0.4581279]
[1771918392150,0.46934976,77.188,77.167,0.4581279]
[1771918392359,0.50561405,77.181,77.167,0.4581279]
[1771918393045,0.46934976,77.18,77.156,0.4581279]
[1771918393753,0.50561405,77.181,77.156,0.4581279]
[1771918393958,0.50561405,77.181,77.161,0.4581279]
[1771918394458,0.46934976,77.186,77.161,0.4581279]
[1771918395155,0.46934976,77.192,77.163,0.4581279]
[1771918398255,0.46934976,77.192,77.165,0.49856321]
[1771918399454,0.46116352,77.199,77.171,0.49856321]
[1771918400050,0.46116352,77.189,77.165,0.49856321]
[1771918400246,0.46116352,77.187,77.159,0.49856321]
[1771918405965,0.48563457,77.185,77.16,0.47707486]
[1771918408962,0.48563457,77.183,77.16,0.47707486]
[1771918409365,0.48563457,77.183,77.155,12.96090089]
[1771918409570,0.48563457,77.183,77.155,13.43797575]
[1771918409765,0.48563457,77.183,77.156,0.47707486]
[1771918411475,0.48563457,77.183,77.158,0.47707486]
[1771918415775,0.48563457,77.183,77.16,0.47707486]
[1771918416376,0.48563457,77.181,77.154,0.47707486]
[1771918419882,0.48563457,77.181,77.155,12.96092281]
[1771918420061,0.48563457,77.179,77.155,12.96092281]
[1771918420784,0.48563457,77.179,77.15,0.67707486]
[1771918422087,0.48563457,77.177,77.151,0.47707486]
[1771918422582,0.48563457,77.177,77.152,0.47707486]
[1771918424574,0.48563457,77.199,77.161,0.47707486]
[1771918424988,0.48563457,77.193,77.161,0.47707486]
[1771918425302,0.48563457,77.193,77.153,12.96125879]
[1771918425303,0.48563457,77.193,77.17,5.16745339]
[1771918425593,0.48563457,77.193,77.171,0.47707486]
[1771918427067,0.48563457,77.192,77.161,0.47707486]
[1771918427288,0.48563457,77.189,77.156,0.47707486]
[1771918428293,0.4802676,77.187,77.161,0.45870595]
[1771918430372,0.4802676,77.185,77.161,0.45870595]
[1771918431089,0.4802676,77.185,77.159,12.9601181]
[1771918432293,12.95672454,77.18,77.155,0.45870595]
[1771918432588,0.4802676,77.179,77.15,0.65870595]
[1771918435480,0.4802676,77.177,77.151,0.45870595]
[1771918437802,0.4802676,77.175,77.151,0.45870595]
[1771918439601,0.4802676,77.175,77.153,0.45870595]
[1771918439905,0.4802676,77.178,77.153,0.45870595]
[1771918440904,0.4802676,77.176,77.153,0.45870595]
[1771918443094,12.95756397,77.175,77.15,0.2]
[1771918443297,0.4802676,77.169,77.151,0.45870595]
[1771918444309,0.4802676,77.169,77.134,32.41102175]
[1771918444310,10.33490678,77.16,77.08,0.2]
[1771918444486,0.4802676,77.119,77.081,45.40677988]
[1771918444902,0.28432314,77.135,77.1,5.16745339]
[1771918445091,0.4802676,77.143,77.111,12.96831839]
[1771918445492,12.96310699,77.142,77.111,12.96831839]
[1771918445801,0.4802676,77.141,77.11,5.16745339]
[1771918446203,0.4802676,77.141,77.111,0.45870595]
[1771918447700,12.96344309,77.14,77.111,0.45870595]
[1771918447901,12.96276315,77.145,77.113,0.45870595]
[1771918448585,13.44303075,77.145,77.113,0.45870595]
[1771918448786,0.4802676,77.144,77.113,0.45870595]
[1771918449287,0.4802676,77.139,77.113,0.45870595]
[1771918450599,0.4802676,77.137,77.113,0.45870595]
[1771918452008,0.4802676,77.131,77.104,0.45870595]
[1771918453298,12.96512381,77.13,77.104,0.45870595]
[1771918454906,0.4802676,77.13,77.104,0.45870595]
[1771918455211,0.4802676,77.129,77.104,0.45870595]
[1771918458010,12.96546001,77.128,77.104,0.45870595]
[1771918458214,0.47014298,77.127,77.104,0.45870595]
[1771918458418,0.47014298,77.119,77.091,0.48300361]
[1771918460222,12.96714126,77.118,77.091,0.48300361]
[1771918460532,5.16745339,77.13,77.101,0.48300361]
[1771918460829,0.47014298,77.129,77.101,0.48300361]
[1771918462605,0.47014298,77.127,77.101,0.48300361]
[1771918464126,0.47509539,77.119,77.095,0.4911984]
[1771918465520,0.47509539,77.117,77.095,0.4911984]
[1771918466508,12.96616551,77.124,77.095,0.4911984]
[1771918466707,0.47509539,77.13,77.101,0.4911984]
[1771918466998,0.47509539,77.136,77.101,0.4911984]
[1771918467202,0.28432314,77.135,77.101,0.4911984]
[1771918467401,0.47509539,77.129,77.101,0.4911984]
[1771918467804,0.47509539,77.127,77.101,0.4911984]
[1771918469011,0.47509539,77.125,77.101,0.4911984]
[1771918469828,0.47509539,77.12,77.101,0.4911984]
[1771918470032,0.47509539,77.126,77.103,0.4911984]
[1771918471008,0.47509539,77.124,77.103,0.4911984]
[1771918472626,0.47509539,77.122,77.103,0.4911984]
[1771918473035,0.47509539,77.119,77.099,0.4911984]
[1771918475812,12.96714126,77.118,77.099,0.4911984]
[1771918477116,13.44223665,77.118,77.099,0.4911984]
[1771918483940,0.47509539,77.124,77.1,12.97016861]
[1771918484141,12.96609911,77.125,77.101,0.4911984]
[1771918485229,32.41040404,77.136,77.101,0.4911984]
[1771918485230,0.47509539,77.126,77.101,0.4911984]
[1771918486025,0.47509539,77.137,77.111,0.4911984]
[1771918486733,12.96261222,77.145,77.121,0.4911984]
[1771918487626,12.96261222,77.145,77.122,0.4911984]
[1771918488230,13.45524255,77.145,77.122,0.4911984]
[1771918488431,12.96261222,77.145,77.122,0.4911984]
[1771918488751,0.49263033,77.144,77.122,0.4911984]
[1771918490158,12.96293895,77.143,77.122,0.4911984]
[1771918490339,0.49263033,77.142,77.122,0.4911984]
[1771918492137,0.06171394,77.142,77.123,0.45547809]
[1771918492340,12.9619308,77.149,77.123,0.45547809]
[1771918494457,0.4122616,77.149,77.123,0.45547809]
[1771918496858,12.96209882,77.148,77.124,12.96613246]
[1771918497061,12.96209882,77.148,77.125,0.45547809]
[1771918497234,13.37429304,77.148,77.125,0.45547809]
[1771918497435,0.41219422,77.147,77.125,0.45547809]
[1771918498634,0.41217228,77.145,77.125,0.45547809]
[1771918499843,0.49263033,77.143,77.11,32.28801008]
[1771918500155,0.49263033,77.141,77.085,3.69383402]
[1771918500361,0.49263033,77.129,77.09,5.1765271]
[1771918500532,0.49263033,77.119,77.09,5.1765271]
[1771918501958,12.96598153,77.125,77.101,0.45547809]
[1771918503137,0.49263033,77.124,77.101,0.45547809]
[1771918503342,0.49263033,77.119,77.089,0.45547809]
[1771918503568,5.1765271,77.12,77.081,0.45547809]
[1771918503569,0.49263033,77.117,77.081,0.45547809]
[1771918503771,0.28432314,77.096,77.068,0.45547809]
[1771918504063,0.49263033,77.091,77.068,0.45547809]
[1771918504247,0.49263033,77.089,77.062,0.45547809]
[1771918505358,5.1765271,77.09,77.044,12.97950436]
[1771918505359,5.1765271,77.07,77.044,12.97950436]
[1771918505540,0.49263033,77.069,77.04,0.65547809]
[1771918505734,0.49263033,77.069,77.042,0.45547809]
[1771918506542,12.97413266,77.077,77.051,0.45547809]
[1771918507663,13.46676299,77.077,77.051,0.45547809]
[1771918507843,13.46589152,77.082,77.051,0.45547809]
[1771918508043,0.49263033,77.081,77.051,0.45547809]
[1771918509373,12.97353399,77.08,77.052,12.97824845]
[1771918509550,12.97353399,77.08,77.053,0.45547809]
[1771918509876,13.46500857,77.087,77.061,0.45547809]
[1771918512043,13.46331133,77.097,77.071,0.45547809]
[1771918512399,0.49263033,77.103,77.081,0.45547809]
[1771918512549,0.49263033,77.103,77.08,3.95638332]
[1771918512872,0.49263033,77.102,77.07,5.1765271]
[1771918513561,5.1765271,77.1,77.071,12.97504898]
[1771918513748,0.49263033,77.099,77.071,12.97504898]
[1771918514643,0.49263033,77.099,77.072,0.45547809]
[1771918515759,0.49263033,77.099,77.073,13.43019037]
[1771918515960,0.49263033,77.099,77.074,0.45547809]
[1771918517458,0.49263033,77.097,77.074,0.45547809]
[1771918518359,0.47711048,77.095,77.074,0.45547809]
[1771918518969,0.47711048,77.095,77.076,0.49283558]
[1771918519281,0.47711048,77.099,77.076,0.49283558]
[1771918519469,0.47711048,77.099,77.081,0.49283558]
[1771918519856,0.47711048,77.099,77.05,64.89220517]
[1771918519857,0.76143362,77.124,77.091,0.49283558]
[1771918520076,0.47711048,77.121,77.091,0.49283558]
[1771918520275,0.47711048,77.109,77.068,0.49283558]
[1771918520492,0.47711048,77.109,77.081,0.49283558]
[1771918521969,0.47711048,77.107,77.081,0.49283558]
[1771918522574,0.47711048,77.107,77.082,0.49283558]
[1771918523981,12.96915933,77.106,77.082,0.49283558]
[1771918524181,0.49846121,77.105,77.082,0.49283558]
[1771918524377,0.49846121,77.118,77.091,0.48330973]
[1771918525080,0.49846121,77.118,77.085,0.48330973]
[1771918525678,0.49846121,77.109,77.071,0.48330973]
[1771918526186,0.49846121,77.101,77.071,13.45835871]
[1771918526367,0.49846121,77.101,77.071,0.48330973]
[1771918526682,0.49846121,77.101,77.028,103.5]
[1771918526683,0.49846121,77.095,77.065,0.48330973]
[1771918526885,0.49846121,77.091,77.065,0.48330973]
[1771918527274,0.49846121,77.091,77.06,5.1765271]
[1771918527475,0.49846121,77.079,77.043,0.48330973]
[1771918527681,0.49846121,77.069,77.04,0.2]
[1771918528180,0.49846121,77.067,77.041,12.9801015]
[1771918529182,0.49846121,77.067,77.04,5.85983683]
[1771918529979,0.49846121,77.067,77.04,0.68330973]
[1771918530173,0.49846121,77.065,77.042,0.48330973]
[1771918530371,0.49846121,77.065,77.04,5.3765271]
[1771918530575,0.49846121,77.065,77.04,18.35670866]
[1771918530775,0.49846121,77.065,77.041,0.48330973]
[1771918532489,0.49846121,77.063,77.041,0.48330973]
[1771918533077,12.9743756,77.075,77.043,0.48330973]
[1771918533381,12.9743756,77.075,77.051,0.48330973]
[1771918535494,12.9743756,77.075,77.052,0.48330973]
[1771918537988,13.47182689,77.081,77.053,12.97808002]
[1771918538186,12.97336568,77.081,77.054,0.48330973]
[1771918538390,0.49846121,77.08,77.054,0.48330973]
[1771918538693,0.49846121,77.079,77.054,0.48330973]
[1771918539768,0.49846121,77.079,77.061,0.2]
[1771918540175,12.97387062,77.078,77.061,0.2]
[1771918540381,12.97387062,77.078,77.062,0.48330973]
[1771918540576,12.97387062,77.078,77.071,0.2]
[1771918540771,12.97387062,77.078,77.062,0.48330973]
[1771918540987,12.97387062,77.078,77.061,0.2]
[1771918540988,0.49846121,77.077,77.061,0.2]
[1771918541896,12.97387062,77.078,77.062,0.48330973]
[1771918542278,45.68285741,77.095,77.062,0.48330973]
[1771918542571,5.18174558,77.09,77.062,0.48330973]
[1771918542775,5.18174558,77.07,77.051,0.2]
[1771918542990,5.18174558,77.06,77.04,0.68330973]
[1771918544178,5.64427932,77.06,77.04,0.68330973]
[1771918544386,12.97706951,77.059,77.04,0.68330973]
[1771918545699,13.23960325,77.059,77.04,0.68330973]
[1771918545906,0.46253374,77.058,77.04,0.68330973]
[1771918546701,0.26253374,77.058,77.04,0.68330973]
[1771918546901,12.97641578,77.063,77.042,0.48330973]
[1771918547400,12.77641578,77.063,77.042,0.48330973]
[1771918548502,0.26253374,77.068,77.042,0.48330973]
[1771918548802,0.26253374,77.066,77.042,0.48330973]
[1771918551704,5.18174558,77.09,77.051,0.5]
[1771918552402,0.28432314,77.097,77.061,0.5]
[1771918552702,45.39676774,77.098,77.061,0.5]
[1771918552902,45.39676774,77.098,77.063,0.5]
[1771918553082,0.28432314,77.097,77.063,0.5]
[1771918554206,5.18174558,77.09,77.063,0.5]
[1771918554993,12.97201935,77.089,77.063,0.5]
[1771918557600,5.18174558,77.08,77.052,0.2]
[1771918558102,5.18174558,77.08,77.053,0.5]
[1771918558906,45.40206773,77.089,77.054,0.5]
[1771918559209,45.40206773,77.089,77.061,0.5]
[1771918561707,0.28432314,77.099,77.062,0.5]
[1771918562489,5.18174558,77.09,77.062,0.5]
[1771918563913,12.97201935,77.089,77.062,0.5]
[1771918566107,12.97050507,77.098,77.062,0.5]
[1771918566294,12.97050507,77.098,77.055,32.44403628]
[1771918566295,12.97050507,77.098,77.071,0.5]
[1771918567616,32.42460679,77.102,77.071,0.5]
[1771918569195,12.96865476,77.109,77.08,5.18174558]
[1771918569426,12.96865476,77.109,77.081,0.5]
[1771918569716,0.28432314,77.114,77.083,0.5]
[1771918569924,0.14216157,77.114,77.083,0.5]
[1771918570115,12.96697311,77.119,77.091,0.5]
[1771918571526,32.40645654,77.146,77.111,0.5]
[1771918571735,12.96361114,77.139,77.111,0.5]
[1771918572097,12.96361114,77.139,77.112,0.5]
[1771918572320,12.96258669,77.146,77.112,0.5]
[1771918572619,5.38174558,77.15,77.111,12.96823283]
[1771918572620,0.2,77.15,77.121,0.5]
[1771918573607,13.16184131,77.15,77.122,0.5]
[1771918573811,0.2,77.15,77.122,0.5]
[1771918574127,0.2,77.15,77.131,0.5]
[1771918574326,0.2,77.199,77.141,0.4544563]
[1771918574496,0.2,77.192,77.151,0.4544563]
[1771918574918,45.53737482,77.199,77.161,0.4544563]
[1771918575220,0.28432314,77.197,77.161,0.4544563]
[1771918575400,0.2,77.189,77.161,0.4544563]
[1771918575601,0.2,77.187,77.161,0.4544563]
[1771918577603,12.95571735,77.186,77.161,0.4544563]
[1771918579421,5.18174558,77.18,77.161,0.4544563]
[1771918579624,12.95689241,77.179,77.161,0.4544563]
[1771918580025,45.34912345,77.179,77.161,0.4544563]
[1771918580316,45.34912345,77.179,77.103,51.87807595]
[1771918580317,0.46920886,77.169,77.13,5.18174558]
[1771918580516,0.46920886,77.159,77.123,12.96630058]
[1771918580715,0.46920886,77.159,77.13,5.18174558]
[1771918580907,0.25331566,77.177,77.141,0.49787238]
[1771918581104,45.34912345,77.179,77.141,0.49787238]
[1771918581306,12.95689241,77.179,77.141,0.49787238]
[1771918581722,5.18174558,77.17,77.141,0.49787238]
[1771918582429,0.46920886,77.159,77.121,12.96663684]
[1771918583824,0.4515553,77.149,77.11,5.18174558]
[1771918584523,0.4515553,77.149,77.112,0.47185049]
[1771918584831,0.4515553,77.139,77.112,0.47185049]
[1771918585231,0.4515553,77.129,77.105,0.47185049]
[1771918585928,5.18174558,77.15,77.11,5.18174558]
[1771918586128,5.18174558,77.15,77.106,12.96915933]
[1771918586129,0.4515553,77.149,77.121,0.47185049]
[1771918586323,12.95893858,77.167,77.141,0.47185049]
[1771918586724,0.4515553,77.159,77.131,0.47185049]
[1771918587927,0.4515553,77.157,77.131,0.47185049]
[1771918588113,0.4515553,77.149,77.11,5.18174558]
[1771918589232,0.4515553,77.149,77.11,11.54531643]
[1771918590032,12.96209882,77.148,77.111,13.44016888]
[1771918590234,0.4515553,77.147,77.112,0.47185049]
[1771918590626,13.41180621,77.159,77.131,0.47185049]
[1771918590929,0.4515553,77.158,77.131,0.47185049]
[1771918592337,0.4515553,77.156,77.131,0.47185049]
[1771918594426,13.41247811,77.155,77.131,0.47185049]
[1771918595446,0.4515553,77.154,77.131,0.47185049]
[1771918595933,12.96125879,77.153,77.131,0.47185049]
[1771918596342,13.41281409,77.153,77.131,0.47185049]
[1771918597844,0.4515553,77.153,77.131,12.96480585]
[1771918598035,0.4515553,77.153,77.132,0.47185049]
[1771918598244,12.96142679,77.152,77.132,0.47185049]
[1771918604546,12.96076415,77.156,77.132,0.47185049]
[1771918604844,0.4515553,77.155,77.132,0.47185049]
[1771918605044,0.4515553,77.155,77.119,32.41735032]
[1771918605045,0.4515553,77.139,77.092,0.47185049]
[1771918605252,0.4515553,77.129,77.091,12.97168281]
[1771918605432,0.4515553,77.129,77.101,0.47185049]
[1771918605637,0.4515553,77.137,77.111,0.47185049]
[1771918605843,13.41567062,77.136,77.111,0.47185049]
[1771918606046,0.4515553,77.135,77.111,0.47185049]
[1771918606248,0.4515553,77.135,77.1,11.54165211]
[1771918606938,0.4515553,77.129,77.09,11.54165211]
[1771918608156,0.48314952,77.127,77.092,0.11986354]
[1771918608852,0.48314952,77.127,77.1,11.54165211]
[1771918609155,0.48314952,77.127,77.1,11.66151565]
[1771918610231,0.48314952,77.125,77.1,0.11986354]
[1771918610852,0.48314952,77.125,77.1,11.66151565]
[1771918611331,12.96505325,77.131,77.101,0.11986354]
[1771918611544,12.96505325,77.131,77.11,5.2946878]
[1771918612627,12.96298239,77.143,77.112,0.11986354]
[1771918612947,0.48314952,77.146,77.121,0.11986354]
[1771918613140,12.96260289,77.145,77.121,0.11986354]
[1771918613336,0.48314952,77.144,77.121,0.11986354]
[1771918614652,0.48314952,77.142,77.082,32.55285697]
[1771918614841,45.37028634,77.143,77.08,5.17482426]
[1771918614842,0.48314952,77.119,77.08,5.17482426]
[1771918615149,0.48314952,77.109,77.08,5.17482426]
[1771918616334,0.48314952,77.108,77.074,0.11986354]
[1771918617489,0.48314952,77.099,77.069,12.97538569]
[1771918617837,0.48314952,77.089,77.065,12.97605178]
[1771918618553,0.48314952,77.119,77.081,0.11986354]
[1771918618754,0.48314952,77.119,77.09,11.55779545]
[1771918619055,0.48314952,77.119,77.091,0.11986354]
[1771918619638,0.48314952,77.118,77.091,0.11986354]
[1771918622252,0.48314952,77.116,77.09,11.55779545]
[1771918625364,0.48314952,77.114,77.09,11.55779545]
[1771918626560,12.96798205,77.113,77.09,11.67765899]
[1771918626870,13.45113157,77.113,77.09,11.67765899]
[1771918627246,0.48314952,77.112,77.09,11.67765899]
[1771918628950,12.96831839,77.111,77.09,11.67765899]
[1771918629871,0.14216157,77.136,77.101,0.46109615]
[1771918630065,12.96411532,77.136,77.111,0.46109615]
[1771918630871,12.96411532,77.136,77.114,0.46109615]
[1771918631750,13.44726484,77.136,77.114,0.46109615]
[1771918633560,13.44726484,77.136,77.12,11.55779545]
[1771918634557,64.80044663,77.16,77.12,12.0188916]
[1771918634558,0.48314952,77.142,77.12,12.0188916]
[1771918634755,0.48314952,77.142,77.121,0.46109615]
[1771918636354,0.48314952,77.148,77.122,0.46109615]
[1771918636554,0.48314952,77.148,77.131,0.46109615]
[1771918637571,0.48314952,77.153,77.131,0.46109615]
[1771918637771,12.96142679,77.152,77.131,0.46109615]
[1771918638276,0.46204825,77.172,77.141,0.45671761]
[1771918639479,0.46204825,77.171,77.141,0.45671761]
[1771918640181,0.46204825,77.171,77.15,5.16934465]
[1771918640359,12.95806769,77.172,77.151,0.45671761]
[1771918640554,13.42011594,77.172,77.151,0.45671761]
[1771918640769,0.46204825,77.171,77.151,0.45671761]
[1771918641771,5.16934465,77.17,77.136,0.45671761]
[1771918641966,5.16934465,77.17,77.122,32.4158366]
[1771918641967,0.46204825,77.169,77.14,5.62606226]
[1771918642171,12.95873937,77.168,77.141,0.45671761]
[1771918642364,0.46204825,77.167,77.141,0.45671761]
[1771918645268,5.16934465,77.18,77.141,0.45671761]
[1771918645269,0.47103934,77.178,77.142,0.47155427]
[1771918645468,0.47103934,77.178,77.15,5.64089892]
[1771918645674,0.47103934,77.178,77.151,0.47155427]
[1771918646588,0.47103934,77.176,77.151,0.47155427]
[1771918646893,0.47103934,77.176,77.146,13.43382931]
[1771918650789,0.47103934,77.174,77.147,0.47155427]
[1771918651988,0.47103934,77.174,77.151,0.47155427]
[1771918652191,13.42893912,77.173,77.151,0.47155427]
[1771918652374,0.47103934,77.172,77.151,0.47155427]
[1771918654493,0.47103934,77.17,77.151,0.47155427]
[1771918656868,0.47103934,77.17,77.152,0.47155427]
[1771918657274,0.47103934,77.168,77.147,0.47155427]
[1771918659193,0.47103934,77.168,77.149,0.47155427]
[1771918659498,0.47103934,77.193,77.161,0.47155427]
[1771918659670,0.47103934,77.193,77.171,0.47155427]
[1771918659870,13.42563265,77.193,77.171,0.47155427]
[1771918660688,0.47103934,77.192,77.171,0.47155427]
[1771918661088,0.47103934,77.198,77.172,0.47155427]
[1771918663497,0.47103934,77.186,77.13,45.37793335]
[1771918663800,0.47103934,77.179,77.14,5.16795162]
[1771918665400,0.47103934,77.177,77.141,12.96327504]
[1771918665699,0.47103934,77.169,77.136,12.96411169]
[1771918666701,0.47103934,77.167,77.132,0.13145879]
[1771918666885,0.47103934,77.167,77.131,12.96495572]
[1771918667286,0.47103934,77.167,77.131,13.09641451]
[1771918667597,0.47103934,77.167,77.132,0.13145879]
[1771918669389,0.49855091,77.165,77.132,0.13145879]
[1771918669590,0.49855091,77.165,77.14,5.16795162]
[1771918670021,0.49855091,77.165,77.141,0.13145879]
[1771918670813,0.49855091,77.165,77.131,12.96495572]
[1771918670814,0.45980663,77.17,77.151,0.13145879]
[1771918672208,0.45980663,77.178,77.151,0.13145879]
[1771918672392,0.45980663,77.178,77.152,0.13145879]
[1771918672898,0.45980663,77.178,77.143,12.96290569]
[1771918673206,0.45980663,77.178,77.14,5.16795162]
[1771918673207,0.45980663,77.169,77.136,12.96401726]
[1771918674503,32.39306052,77.178,77.141,0.13145879]
[1771918674695,0.45980663,77.174,77.141,0.13145879]
[1771918675418,12.95722818,77.177,77.151,0.13145879]
[1771918675793,0.45980663,77.176,77.151,0.13145879]
[1771918676703,0.45980663,77.174,77.151,0.13145879]
[1771918677005,0.45980663,77.174,77.147,12.96225334]
[1771918679207,0.45980663,77.172,77.143,12.96291329]
[1771918681212,0.45980663,77.169,77.13,5.16795162]
[1771918681390,0.45980663,77.169,77.13,5.29941041]
[1771918681597,0.45980663,77.169,77.131,0.13145879]
[1771918682818,0.45980663,77.159,77.12,5.16795162]
[1771918682999,0.14216157,77.154,77.118,0.13145879]
[1771918683198,0.45980663,77.151,77.118,0.13145879]
[1771918683507,0.45980663,77.149,77.118,0.13145879]
[1771918683696,0.45980663,77.149,77.114,12.96781388]
[1771918684521,0.45980663,77.147,77.114,12.96781388]
[1771918684901,12.96109085,77.154,77.131,0.49178886]
[1771918686103,12.96109085,77.154,77.121,0.49178886]
[1771918686801,12.96025091,77.159,77.122,12.96646871]
[1771918687002,0.45980663,77.158,77.123,0.49178886]
[1771918687629,0.45980663,77.158,77.13,5.16795162]
[1771918687815,0.45980663,77.162,77.141,0.49178886]
[1771918690621,0.45980663,77.168,77.141,0.49178886]
[1771918693028,0.45980663,77.166,77.131,0.49178886]
[1771918695323,13.41904981,77.165,77.14,5.16795162]
[1771918695626,0.45980663,77.164,77.141,0.49178886]
[1771918697831,12.95957907,77.163,77.141,0.49178886]
[1771918700829,0.46200041,77.163,77.141,0.49178886]
[1771918702632,12.95974702,77.162,77.141,0.49178886]
[1771918702838,13.41454397,77.162,77.141,0.49178886]
[1771918704035,12.95974702,77.162,77.141,0.49178886]
[1771918704339,0.45479695,77.161,77.141,0.49178886]
[1771918704840,12.96008294,77.16,77.141,0.49178886]
[1771918705143,13.41487989,77.16,77.141,0.49178886]
[1771918705542,0.45479695,77.159,77.141,0.49178886]
[1771918709144,12.95857144,77.169,77.143,0.49706391]
[1771918709532,0.45479695,77.173,77.151,0.49706391]
[1771918709533,13.41286255,77.173,77.151,0.49706391]
[1771918712950,0.45479695,77.178,77.152,12.96142679]
[1771918713132,0.45479695,77.183,77.161,0.49706391]
[1771918713332,0.45479695,77.188,77.161,0.49706391]
[1771918714346,0.45479695,77.188,77.171,0.49706391]
[1771918714550,0.45479695,77.188,77.161,0.49706391]
[1771918716939,0.45479695,77.188,77.163,0.49706391]
[1771918718345,0.45479695,77.186,77.163,0.49706391]
[1771918719550,0.45479695,77.186,77.15,5.16594079]
[1771918719755,0.45479695,77.186,77.15,5.6630047]
[1771918719954,0.45479695,77.186,77.151,0.49706391]
[1771918723145,0.45479695,77.184,77.153,0.49706391]
[1771918723751,5.16594079,77.18,77.148,0.49706391]